[Event "Elitserien Allsvenskan 2018-19"]
[Site "Sweden"]
[Date "2018.11.11"]
[Round "3"]
[White "Al-Hadarani, Hatim"]
[Black "Kretz, Johan"]
[Result "1-0"]
[ECO "A19"]
[WhiteElo "2318"]
[BlackElo "2220"]
[Annotator "NA"]
[PlyCount "99"]
[EventDate "2018.11.09"]
[EventType "team-tourn"]
[EventCountry "SWE"]
[SourceTitle "playchess.com"]
[Source "ChessBase"]
[SourceQuality "1"]
[TimeControl "40/5400+30:1800+30"]

1. c4 {[%emt 0:10:42]} Nf6 {[%emt 0:00:00]} 2. Nc3 {[%emt 0:00:30]} e6 {[%emt 0:00:24]} 3. e4 {[%emt 0:00:18]} c5 {[%emt 0:00:27]} 4. e5 {[%emt 0:04:36]} Ng8 {[%emt 0:00:15]} 5. f4 $11 {[%emt 0:26:06]} Nc6 {[%emt 0:06:45]} 6. Nf3 {[%emt 0:00:28]} Nh6 {[%emt 0:13:22]} 7. Bd3 {[%emt 0:00:52]} d6 {[%emt 0:01:21]} 8. Be4 {[%emt 0:01:41]} Nd4 {[%emt 0:05:44]} 9. O-O {[%emt 0:04:03]} Nhf5 {[%emt 0:02:59]} 10. d3 {[%emt 0:01:41]} a6 {[%emt 0:02:47]} 11. Kh1 {[%emt 0:01:56]} Qc7 {[%emt 0:05:36]} 12. g4 {[%emt 0:03:24]} Ne7 {[%emt 0:08:13]} 13. Nxd4 {[%emt 0:17:29]} cxd4 {[%emt 0:01:39]} 14. Ne2 {[%emt 0:09:43]} dxe5 {[%emt 0:02:36]} 15. fxe5 {[%emt 0:00:06]} Ng6 {[%emt 0:01:33]} 16. Nxd4 {[%emt 0:02:45]} Qxe5 {[%emt 0:05:23]} 17. Nf3 {[%emt 0:00:54]} Qc7 {[%emt 0:00:45]} 18. Ng5 {[%emt 0:00:53]} f6 {[%emt 0:01:39]} 19. Nxh7 {[%emt 0:10:16]} f5 {[%emt 0:01:09]} 20. gxf5 {[%emt 0:00:26]} Rxh7 {[%emt 0:00:12]} 21. Qe2 {[%emt 0:00:14]} Bd6 {[%emt 0:02:21]} 22. fxe6 {[%emt 0:00:56]} Rxh2+ {[%emt 0:11:24]} 23. Qxh2 {[%emt 0:00:02]} Bxh2 {[%emt 0:00:02]} 24. Bxg6+ {[%emt 0:00:11]} Ke7 {[%emt 0:00:29]} 25. Rf7+ {[%emt 0:00:50]} Kxe6 {[%emt 0:00:14]} 26. Rxc7 {[%emt 0:00:13]} Bxc7 {[%emt 0:00:06]} 27. Bg5 {[%emt 0:00:38]} Bd6 {[%emt 0:08:30]} 28. d4 {[%emt 0:00:24]} b6 {[%emt 0:00:47]} 29. Re1+ {[%emt 0:01:09]} Kd7 {[%emt 0:00:16]} 30. Be8+ {[%emt 0:00:58]} Kc7 {[%emt 0:00:09]} 31. d5 {[%emt 0:00:32]} Bf5 {[%emt 0:01:59]} 32. Kg2 {[%emt 0:00:27]} Bd7 {[%emt 0:07:55]} 33. Bxd7 {[%emt 0:00:02]} Kxd7 {[%emt 0:00:02]} 34. Be3 {[%emt 0:00:53]} Rc8 {[%emt 0:05:12]} 35. Rc1 {[%emt 0:00:33]} Rh8 {[%emt 0:02:46]} 36. Bxb6 {[%emt 0:00:35]} Rh2+ {[%emt 0:00:07]} 37. Kf3 {[%emt 0:00:12]} Rxb2 {[%emt 0:00:12]} 38. Bd4 {[%emt 0:00:14]} Rxa2 {[%emt 0:00:19]} 39. c5 {[%emt 0:00:18]} Ra4 {[%emt 0:02:46]} 40. Ke4 {[%emt 0:01:06]} Bg3 {[%emt 0:00:37]} 41. Rf1 {[%emt 0:30:37]} Bh4 {[%emt 0:30:50]} 42. Kd3 {[%emt 0:00:22]} Ra3+ {[%emt 0:00:00]} 43. Kc4 {[%emt 0:00:00]} Ra4+ {[%emt 0:00:00]} 44. Kc3 {[%emt 0:00:00]} Ra3+ {[%emt 0:00:00]} 45. Kb4 {[%emt 0:00:00]} Rg3 {[%emt 0:00:00]} 46. c6+ {[%emt 0:00:00]} Kd6 {[%emt 0:00:00]} 47. Bc5+ {[%emt 0:00:00]} Kxd5 {[%emt 0:01:10]} 48. c7 {[%emt 0:00:00]} a5+ {[%emt 0:00:47]} 49. Kb5 {[%emt 0:00:00]} Rb3+ {[%emt 0:00:42]} 50. Ka6 {[%emt 0:00:00]} 1-0

[Event "Elitserien Allsvenskan 2018-19"]
[Site "Sweden"]
[Date "2018.11.11"]
[Round "3"]
[White "Pantzar, Milton"]
[Black "Drugge, Patrik"]
[Result "1-0"]
[ECO "A84"]
[WhiteElo "2314"]
[BlackElo "2198"]
[Annotator "NA"]
[PlyCount "55"]
[EventDate "2018.11.09"]
[EventType "team-tourn"]
[EventCountry "SWE"]
[SourceTitle "playchess.com"]
[Source "ChessBase"]
[SourceQuality "1"]
[TimeControl "40/5400+30:1800+30"]

1. d4 {[%emt 0:00:00]} d5 {[%emt 0:00:00]} 2. Nf3 {[%emt 0:00:53]} e6 {[%emt 0:01:47]} 3. c4 {[%emt 0:00:56]} c6 {[%emt 0:01:31]} 4. Nc3 {[%emt 0:00:46]} f5 {[%emt 0:00:11]} 5. Bf4 {[%emt 0:04:36]} Be7 {[%emt 0:04:03]} 6. e3 {[%emt 0:00:30]} Nf6 {[%emt 0:00:30]} 7. Bd3 {[%emt 0:00:30]} O-O {[%emt 0:00:30]} 8. Qc2 {[%emt 0:00:30]} Ne4 {[%emt 0:00:32]} 9. g4 $14 {[%emt 0:04:15] LiveBook: 103 Games} g5 {[%emt 0:00:30]} 10. Be5 {[%emt 0:00:30]} Nd7 {[%emt 1:06:00]} 11. h4 {[%emt 0:35:24]} Nxe5 {[%emt 0:11:51]} 12. Nxe5 {[%emt 0:02:14]} gxh4 {[%emt 0:04:43]} 13. O-O-O {[%emt 0:05:04]} Bd7 {[%emt 0:01:38]} 14. Rdg1 {[%emt 0:14:53]} Kh8 {[%emt 0:00:28]} 15. f4 {[%emt 0:00:08]} Bf6 {[%emt 0:02:32]} 16. Nxd7 {[%emt 0:14:49]} Qxd7 {[%emt 0:00:04]} 17. Bxe4 {[%emt 0:00:31]} fxe4 {[%emt 0:01:00]} 18. g5 {[%emt 0:00:01]} Bg7 {[%emt 0:00:37]} 19. Rxh4 {[%emt 0:05:23]} c5 {[%emt 0:00:30]} 20. dxc5 {[%emt 0:00:30]} Rad8 {[%emt 0:00:15]} 21. Rgh1 {[%emt 0:03:24]} h6 {[%emt 0:00:30]} 22. cxd5 {[%emt 0:00:30]} exd5 {[%emt 0:00:30]} 23. Rxh6+ {[%emt 0:00:30]} Bxh6 {[%emt 0:00:30]} 24. Rxh6+ {[%emt 0:00:30]} Kg7 {[%emt 0:00:44]} 25. Nxe4 {[%emt 0:02:45]} dxe4 {[%emt 0:00:30]} 26. Qc3+ {[%emt 0:00:06]} Kg8 {[%emt 0:00:10]} 27. Rh8+ {[%emt 0:00:22]} Kf7 {[%emt 0:00:06]} 28. Rh7+ {[%emt 0:00:05]} 1-0

[Event "Elitserien Allsvenskan 2018-19"]
[Site "Sweden"]
[Date "2018.11.11"]
[Round "3"]
[White "Rothen, Hakan"]
[Black "Cramling, Dan"]
[Result "1/2-1/2"]
[ECO "A57"]
[WhiteElo "2298"]
[BlackElo "2341"]
[Annotator "NA"]
[PlyCount "103"]
[EventDate "2018.11.09"]
[EventType "team-tourn"]
[EventCountry "SWE"]
[SourceTitle "playchess.com"]
[Source "ChessBase"]
[SourceQuality "1"]
[TimeControl "40/5400+30:1800+30"]

1. d4 {[%emt 0:10:53]} Nf6 {[%emt 0:01:19]} 2. Nf3 {[%emt 0:00:16]} c5 {[%emt 0:00:53]} 3. d5 {[%emt 0:00:16]} d6 {[%emt 0:00:33]} 4. c4 {[%emt 0:01:03]} b5 {[%emt 0:00:53]} 5. cxb5 {[%emt 0:00:09]} a6 {[%emt 0:00:14]} 6. bxa6 {[%emt 0:00:05]} g6 {[%emt 0:02:28]} 7. e4 {[%emt 0:01:38]} Bg7 {[%emt 0:00:49]} 8. Nc3 {[%emt 0:01:27]} Qa5 {[%emt 0:02:23]} 9. Bd2 {[%emt 0:01:48]} O-O {[%emt 0:01:23]} 10. h3 {[%emt 0:00:59]} Bxa6 {[%emt 0:11:44]} 11. Bxa6 {[%emt 0:00:10]} Qxa6 {[%emt 0:00:22]} 12. Qe2 {[%emt 0:01:08]} Ne8 {[%emt 0:01:19]} 13. Qxa6 {[%emt 0:00:57]} Nxa6 {[%emt 0:00:14]} 14. Ke2 {[%emt 0:02:49]} f5 {[%emt 0:00:31]} 15. exf5 {[%emt 0:04:15]} Rxf5 {[%emt 0:03:09]} 16. g4 {[%emt 0:00:29]} Rf8 {[%emt 0:01:43]} 17. Bg5 {[%emt 0:11:09]} Nec7 {[%emt 0:05:13]} 18. a3 {[%emt 0:29:24]} Bxc3 {[%emt 0:10:53]} 19. bxc3 {[%emt 0:00:06]} Nxd5 {[%emt 0:00:19]} 20. c4 {[%emt 0:01:44]} Nb6 {[%emt 0:01:48]} 21. Nd2 {[%emt 0:00:57]} Nb8 {[%emt 0:03:30]} 22. Rhb1 {[%emt 0:02:57]} Ra6 {[%emt 0:07:42]} 23. Bh6 {[%emt 0:07:03]} Rd8 {[%emt 0:03:14]} 24. Be3 {[%emt 0:07:58]} Nc6 {[%emt 0:02:46]} 25. f4 {[%emt 0:00:49]} Rda8 {[%emt 0:06:05]} 26. h4 {[%emt 0:03:22]} Kf7 {[%emt 0:03:47]} 27. Rb3 {[%emt 0:01:46]} Nd7 {[%emt 0:04:51]} 28. Ne4 {[%emt 0:03:11]} Ra4 {[%emt 0:04:39]} 29. Kd3 {[%emt 0:00:46]} Na5 {[%emt 0:03:06]} 30. Rc3 {[%emt 0:00:28]} Rb8 {[%emt 0:01:02]} 31. h5 {[%emt 0:01:49]} Nf6 {[%emt 0:03:53]} 32. hxg6+ {[%emt 0:00:20]} hxg6 {[%emt 0:00:27]} 33. Nxf6 {[%emt 0:00:48]} exf6 {[%emt 0:00:52]} 34. f5 {[%emt 0:01:14]} Rh8 {[%emt 0:03:11]} 35. Rb1 {[%emt 0:01:11]} Rh3 {[%emt 0:00:17]} 36. Ke4 {[%emt 0:01:44]} gxf5+ {[%emt 0:04:17]} 37. Kxf5 {[%emt 0:00:20]} d5 {[%emt 0:03:50]} 38. Bd4 {[%emt 0:00:50]} Rxc3 {[%emt 0:01:30]} 39. Bxc3 {[%emt 0:00:13]} Nxc4 {[%emt 0:00:58]} 40. Rb7+ {[%emt 0:00:10]} Ke8 {[%emt 0:00:14]} 41. Ke6 {[%emt 0:30:22]} Ra6+ {[%emt 0:31:27]} 42. Kxd5 {[%emt 0:00:05]} Ne3+ {[%emt 0:00:24]} 43. Kxc5 {[%emt 0:00:00]} Rxa3 {[%emt 0:00:00]} 44. Bxf6 {[%emt 0:00:00]} Nxg4 {[%emt 0:00:00]} 45. Bd4 {[%emt 0:00:00]} Ra6 {[%emt 0:00:00]} 46. Rg7 {[%emt 0:00:00]} Nf6 {[%emt 0:00:00]} 47. Kb5 {[%emt 0:00:00]} Kf8 {[%emt 0:00:00]} 48. Rb7 {[%emt 0:00:00]} Re6 {[%emt 0:00:00]} 49. Kc5 {[%emt 0:00:00]} Re7 {[%emt 0:00:00]} 50. Rb1 {[%emt 0:00:00]} Re6 {[%emt 0:00:00]} 51. Rb8+ {[%emt 0:00:00]} Re8 {[%emt 0:00:00]} 52. Rxe8+ {[%emt 0:06:52]} 1/2-1/2

[Event "Elitserien Allsvenskan 2018-19"]
[Site "Sweden"]
[Date "2018.11.11"]
[Round "3"]
[White "Lundin, Jan"]
[Black "Dragicevic, Drazen"]
[Result "1-0"]
[ECO "B24"]
[WhiteElo "2293"]
[BlackElo "2344"]
[Annotator "NA"]
[PlyCount "59"]
[EventDate "2018.11.09"]
[EventType "team-tourn"]
[EventCountry "SWE"]
[SourceTitle "playchess.com"]
[Source "ChessBase"]
[SourceQuality "1"]
[TimeControl "40/5400+30:1800+30"]

1. e4 {[%emt 0:00:00]} c5 {[%emt 0:01:50]} 2. Nc3 {[%emt 0:00:00]} Nc6 {[%emt 0:00:22]} 3. g3 {[%emt 0:00:00]} g6 {[%emt 0:00:45]} 4. Bg2 {[%emt 0:00:00]} Bg7 {[%emt 0:00:05]} 5. d3 {[%emt 0:00:05]} Nf6 {[%emt 0:02:32]} 6. f4 {[%emt 0:01:01]} O-O {[%emt 0:00:54]} 7. g4 {[%emt 0:08:13]} Nd4 {[%emt 0:15:37]} 8. h3 {[%emt 0:09:55]} d6 {[%emt 0:08:13]} 9. Nce2 {[%emt 0:03:43]} Ne8 {[%emt 0:16:53]} 10. c3 {[%emt 0:03:58]} Nxe2 {[%emt 0:06:43]} 11. Nxe2 {[%emt 0:01:29]} b5 {[%emt 0:03:31]} 12. O-O {[%emt 0:03:21]} a5 {[%emt 0:01:55]} 13. d4 {[%emt 0:05:46]} Ba6 {[%emt 0:04:53]} 14. Be3 {[%emt 0:18:22]} b4 {[%emt 0:10:14]} 15. Rf2 {[%emt 0:08:39]} cxd4 {[%emt 0:03:22]} 16. cxd4 {[%emt 0:00:41]} Rc8 {[%emt 0:01:02]} 17. a3 {[%emt 0:01:49]} Qb6 {[%emt 0:02:28]} 18. axb4 {[%emt 0:00:31]} axb4 {[%emt 0:01:03]} 19. Qd2 {[%emt 0:01:07]} b3 {[%emt 0:10:15]} 20. d5 {[%emt 0:10:07]} Qb5 {[%emt 0:04:15]} 21. Nd4 {[%emt 0:04:46]} Bxd4 {[%emt 0:00:52]} 22. Qxd4 {[%emt 0:00:13]} Qb7 {[%emt 0:02:14]} 23. e5 {[%emt 0:05:48]} Nc7 {[%emt 0:00:54]} 24. exd6 {[%emt 0:02:14]} exd6 {[%emt 0:00:21]} 25. f5 {[%emt 0:00:20]} Rfe8 {[%emt 0:00:42]} 26. fxg6 {[%emt 0:01:25]} fxg6 {[%emt 0:00:27]} 27. Bh6 {[%emt 0:01:11]} Nb5 {[%emt 0:00:32]} 28. Qf6 {[%emt 0:01:33]} Qe7 {[%emt 0:00:29]} 29. Qxe7 {[%emt 0:01:02]} Rxe7 {[%emt 0:00:02]} 30. Rxa6 {[%emt 0:00:15]} 1-0

[Event "Elitserien Allsvenskan 2018-19"]
[Site "Sweden"]
[Date "2018.11.11"]
[Round "3"]
[White "Karlsson, Tomas"]
[Black "Vaarala, Eric"]
[Result "1-0"]
[ECO "B40"]
[WhiteElo "2289"]
[BlackElo "2320"]
[Annotator "NA"]
[PlyCount "29"]
[EventDate "2018.11.09"]
[EventType "team-tourn"]
[EventCountry "SWE"]
[SourceTitle "playchess.com"]
[Source "ChessBase"]
[SourceQuality "1"]
[TimeControl "40/5400+30:1800+30"]

1. e4 {[%emt 0:00:00]} c5 {[%emt 0:00:00]} 2. Nf3 {[%emt 0:00:00]} e6 {[%emt 0:00:01]} 3. d4 {[%emt 0:00:12]} cxd4 {[%emt 0:00:06]} 4. Nxd4 {[%emt 0:00:07]} Nf6 {[%emt 0:00:03]} 5. Nc3 {[%emt 0:00:30]} Nc6 {[%emt 0:00:03]} 6. Nxc6 {[%emt 0:00:24]} bxc6 {[%emt 0:00:10]} 7. Bd3 {[%emt 0:00:19]} d5 {[%emt 0:00:13]} 8. Qe2 {[%emt 0:01:47]} Be7 {[%emt 0:00:42]} 9. O-O {[%emt 0:00:00] Nb1 [%clk 1:23:28]} c5 {[%emt 0:00:30] Nd2 [%clk 1:23:28] Qc7 [%clk 1:32:42] Nc4 [%clk 1:23:28] Nd7 [%clk 1:32:42]} 10. e5 {[%emt 0:08:13]} Bb7 {[%emt 0:00:30]} 11. Bd2 {[%emt 0:00:30] Nb6 [%clk 1:32:42] Nxb6 [%clk 1:23:28] axb6 [%clk 1:32:42] Bb5+ [%clk 1:23:28]} Bc6 {[%emt 0:00:30] c3 [%clk 1:23:28] dxc3 [%clk 1:32:42] Bxc3 [%clk 1:23:28] O-O [%clk 1:32:42]} 12. a4 {[%emt 0:00:30] Bd5 [%clk 1:02:02] Qg4 [%clk 0:36:51] Rfd8 [%clk 1:02:03] f4 [%clk 0:35:39] Be4 [%clk 1:02:16] Qe2 [%clk 0:34:37] Qb7 [%clk 1:01:53] Rfe1 [%clk 0:30:20] Bg6 [%clk 1:01:48] b3 [%clk 0:26:02]} h5 {[%emt 0:34:52] Red1 [%clk 0:19:26]} 13. h4 {[%emt 0:27:30] h3 [%clk 0:18:12] Be4 [%clk 0:54:18] Be1 [%clk 0:14:37] Bd5 [%clk 0:44:41] Rab1 [%clk 0:12:10]} Qc7 {[%emt 0:23:13] Bd3 [%clk 0:09:45] c4 [%clk 0:29:35] bxc4 [%clk 0:08:48] Bb7 [%clk 0:28:33] f5 [%clk 0:05:28] exf5 [%clk 0:22:44]} 14. Bf5 {[%emt 0:51:13]} g6 {[%emt 0:16:14] Bc2 [%clk 0:04:36] Re8 [%clk 0:19:53] Bc3 [%clk 0:04:36] Rac8 [%clk 0:19:53]} 15. Bd3 {[%emt 0:01:39] Qc6 [%clk 0:19:53] Qg4 [%clk 0:04:36] Rcd8 [%clk 0:19:53] Kh1 [%clk 0:01:51] Rxd3 [%clk 0:00:40] Rxd3 [%clk 0:02:10] Bc8 [%clk 0:00:51] e6 [%clk 0:02:14] Bxe6 [%clk 0:00:42] Qd4 [%clk 0:02:20] f6 [%clk 0:00:50] Rxb6 [%clk 0:01:09] Qxc4 [%clk 0:00:31] Qxc4 [%clk 0:26:38] Bxc4 [%clk 0:30:50] Re3 [%clk 0:26:13] Kf7 [%clk 0:30:47] Bxf6 [%clk 0:26:13] Bxf6 [%clk 0:30:47] Rxe8 [%clk 0:26:13] Kxe8 [%clk 0:30:47] Rxf6 [%clk 0:26:13]} 1-0

[Event "Elitserien Allsvenskan 2018-19"]
[Site "Sweden"]
[Date "2018.11.11"]
[Round "3"]
[White "Landgren, Andreas"]
[Black "Schutz, Ingemar"]
[Result "1-0"]
[ECO "E94"]
[WhiteElo "2276"]
[BlackElo "2211"]
[Annotator "NA"]
[PlyCount "125"]
[EventDate "2018.11.09"]
[EventType "team-tourn"]
[EventCountry "SWE"]
[SourceTitle "playchess.com"]
[Source "ChessBase"]
[SourceQuality "1"]
[TimeControl "40/5400+30:1800+30"]

1. d4 {[%emt 0:00:00]} Nf6 {[%emt 0:00:00]} 2. c4 {[%emt 0:00:00]} g6 {[%emt 0:00:00]} 3. Nc3 {[%emt 0:00:00]} Bg7 {[%emt 0:00:00]} 4. e4 {[%emt 0:00:00]} O-O {[%emt 0:00:09]} 5. Nf3 {[%emt 0:00:00]} d6 {[%emt 0:00:09]} 6. Be2 {[%emt 0:00:08]} e5 {[%emt 0:00:14]} 7. O-O {[%emt 0:00:22]} exd4 {[%emt 0:00:17]} 8. Nxd4 {[%emt 0:00:11]} Re8 {[%emt 0:00:12]} 9. f3 {[%emt 0:00:07]} c6 {[%emt 0:00:14]} 10. Kh1 {[%emt 0:00:17]} Nbd7 {[%emt 0:00:23]} 11. Bf4 {[%emt 0:00:21]} Nh5 {[%emt 0:30:24]} 12. Bxd6 {[%emt 0:00:18]} Qf6 {[%emt 0:05:41]} 13. Nb3 {[%emt 0:00:23]} Nf4 {[%emt 0:01:26]} 14. c5 {[%emt 0:01:15]} Ne5 {[%emt 0:08:48]} 15. Re1 {[%emt 0:08:44]} Be6 {[%emt 0:09:03]} 16. Bf1 {[%emt 0:09:29]} Rad8 {[%emt 0:02:33]} 17. Qc2 {[%emt 0:25:18]} h5 {[%emt 0:13:42]} 18. g3 {[%emt 0:10:03]} Nfd3 {[%emt 0:08:55]} 19. Re3 {[%emt 0:08:48]} Nb4 {[%emt 0:03:29]} 20. Qg2 {[%emt 0:00:46]} Nc4 {[%emt 0:05:24]} 21. Ree1 {[%emt 0:25:36]} Nxd6 {[%emt 0:01:53]} 22. e5 {[%emt 0:01:39]} Qe7 {[%emt 0:04:27]} 23. cxd6 {[%emt 0:00:28]} Qf8 {[%emt 0:00:14]} 24. Nc5 {[%emt 0:02:02]} Bc8 {[%emt 0:00:58]} 25. a3 {[%emt 0:00:50]} Nd5 {[%emt 0:00:46]} 26. f4 {[%emt 0:01:39]} Nxc3 {[%emt 0:00:14]} 27. bxc3 {[%emt 0:00:07]} b6 {[%emt 0:00:30]} 28. d7 {[%emt 0:01:01]} Bxd7 {[%emt 0:00:33]} 29. Nxd7 {[%emt 0:00:05]} Rxd7 {[%emt 0:00:04]} 30. Qxc6 {[%emt 0:00:13]} Qe7 {[%emt 0:00:51]} 31. Qe4 {[%emt 0:02:11]} Rc7 {[%emt 0:00:26]} 32. Bc4 {[%emt 0:01:33]} Qc5 {[%emt 0:00:21]} 33. Bd5 {[%emt 0:00:14]} Qxc3 {[%emt 0:00:40]} 34. Qxg6 {[%emt 0:00:10]} Qf3+ {[%emt 0:00:04]} 35. Bxf3 {[%emt 0:00:09]} fxg6 {[%emt 0:00:03]} 36. Rac1 {[%emt 0:00:22]} Ree7 {[%emt 0:00:10]} 37. Be4 {[%emt 0:00:20]} Kf7 {[%emt 0:00:16]} 38. Red1 {[%emt 0:00:32]} g5 {[%emt 0:00:59]} 39. Bf3 {[%emt 0:01:30]} gxf4 {[%emt 0:01:39]} 40. gxf4 {[%emt 0:01:57]} Rxc1 {[%emt 0:01:15]} 41. Bxh5+ {[%emt 0:30:16]} Ke6 {[%emt 0:30:08]} 42. Bg4+ {[%emt 0:00:07]} Kf7 {[%emt 0:00:25]} 43. Rxc1 {[%emt 0:00:07]} Bh6 {[%emt 0:02:09]} 44. Bh5+ {[%emt 0:00:00]} Kg7 {[%emt 0:00:00]} 45. Rf1 {[%emt 0:00:00]} b5 {[%emt 0:00:00]} 46. Kg2 {[%emt 0:00:00]} Kh7 {[%emt 0:00:00]} 47. Kf3 {[%emt 0:00:00]} Bf8 {[%emt 0:00:00]} 48. Rb1 {[%emt 0:00:00]} Kh6 {[%emt 0:00:00]} 49. Bg4 {[%emt 0:00:00]} Rb7 {[%emt 0:00:00]} 50. Rb3 {[%emt 0:00:00]} a5 {[%emt 0:00:00]} 51. Ke4 {[%emt 0:00:00]} a4 {[%emt 0:00:00]} 52. Rh3+ {[%emt 0:00:00]} Kg7 {[%emt 0:00:00]} 53. Be6 {[%emt 0:00:00]} b4 {[%emt 0:00:00]} 54. f5 {[%emt 0:01:10]} b3 {[%emt 0:01:44]} 55. f6+ {[%emt 0:00:28]} Kg6 {[%emt 0:00:14]} 56. Bf5+ {[%emt 0:00:45]} Kg5 {[%emt 0:00:31]} 57. Rg3+ {[%emt 0:00:15]} Kh4 {[%emt 0:02:31]} 58. Rg8 {[%emt 0:01:18]} Bh6 {[%emt 0:01:39]} 59. e6 {[%emt 0:02:20]} b2 {[%emt 0:00:09]} 60. Kd4 {[%emt 0:00:16]} Rb5 {[%emt 0:01:10]} 61. Bb1 {[%emt 0:00:14]} Bg5 {[%emt 0:00:56]} 62. Rxg5 {[%emt 0:00:50]} Kxg5 {[%emt 0:00:08]} 63. f7 {[%emt 0:00:16]} 1-0

[Event "Elitserien Allsvenskan 2018-19"]
[Site "Sweden"]
[Date "2018.11.11"]
[Round "3"]
[White "Lindgren, Fredrik"]
[Black "Brynell, Stellan"]
[Result "1/2-1/2"]
[ECO "A47"]
[WhiteElo "2269"]
[BlackElo "2398"]
[Annotator "NA"]
[PlyCount "87"]
[EventDate "2018.11.09"]
[EventType "team-tourn"]
[EventCountry "SWE"]
[SourceTitle "playchess.com"]
[Source "ChessBase"]
[SourceQuality "1"]
[TimeControl "40/5400+30:1800+30"]

1. d4 {[%emt 0:00:00]} Nf6 {[%emt 0:00:00]} 2. Nf3 {[%emt 0:00:00]} e6 {[%emt 0:00:01]} 3. g3 {[%emt 0:00:00]} b6 {[%emt 0:01:51]} 4. Bg2 {[%emt 0:00:00]} Bb7 {[%emt 0:00:04]} 5. O-O {[%emt 0:00:03]} Be7 {[%emt 0:00:53]} 6. Nbd2 {[%emt 0:00:14]} O-O {[%emt 0:02:04]} 7. b3 {[%emt 0:00:08]} c5 {[%emt 0:02:05]} 8. Bb2 {[%emt 0:01:21]} cxd4 {[%emt 0:00:55]} 9. Nxd4 {[%emt 0:01:30]} Bxg2 {[%emt 0:01:24]} 10. Kxg2 {[%emt 0:00:02]} d5 {[%emt 0:02:45]} 11. e3 {[%emt 0:00:59]} Qd7 {[%emt 0:04:14]} 12. c4 {[%emt 0:05:42]} Nc6 {[%emt 0:01:53]} 13. Nxc6 {[%emt 0:12:34]} Qxc6 {[%emt 0:00:07]} 14. Qf3 {[%emt 0:00:18]} Rac8 {[%emt 0:01:58]} 15. Rac1 {[%emt 0:02:14]} Rfd8 {[%emt 0:04:27]} 16. Bxf6 {[%emt 0:22:46]} Bxf6 {[%emt 0:01:23]} 17. cxd5 {[%emt 0:03:05]} Qxc1 {[%emt 0:13:17]} 18. Rxc1 {[%emt 0:00:03]} Rxc1 {[%emt 0:00:05]} 19. Ne4 {[%emt 0:00:18]} Rxd5 {[%emt 0:02:08]} 20. Nxf6+ {[%emt 0:00:16]} gxf6 {[%emt 0:00:06]} 21. Qxf6 {[%emt 0:00:39]} Rc2 {[%emt 0:01:04]} 22. e4 {[%emt 0:02:41]} Rdd2 {[%emt 0:01:05]} 23. Kh3 {[%emt 0:00:15]} Kf8 {[%emt 0:15:42]} 24. Kg4 {[%emt 0:02:26]} Ke8 {[%emt 0:00:35]} 25. f4 {[%emt 0:09:31]} Rxh2 {[%emt 0:00:23]} 26. Qh8+ {[%emt 0:15:14]} Ke7 {[%emt 0:00:44]} 27. f5 {[%emt 0:16:32]} exf5+ {[%emt 0:06:37]} 28. exf5 {[%emt 0:00:03]} Rc5 {[%emt 0:03:46]} 29. Qb8 {[%emt 0:02:24]} Rxa2 {[%emt 0:01:18]} 30. f6+ {[%emt 0:02:51]} Kxf6 {[%emt 0:01:17]} 31. Qd6+ {[%emt 0:00:45]} Kg7 {[%emt 0:00:07]} 32. Qd4+ {[%emt 0:00:30]} Kg6 {[%emt 0:03:08]} 33. Qd6+ {[%emt 0:00:05]} Kg7 {[%emt 0:02:17]} 34. Qd4+ {[%emt 0:00:13]} f6 {[%emt 0:00:09]} 35. Qd7+ {[%emt 0:00:07]} Kh6 {[%emt 0:00:26]} 36. Qf7 {[%emt 0:01:13]} Rg5+ {[%emt 0:02:09]} 37. Kf3 {[%emt 0:00:42]} Rg6 {[%emt 0:01:05]} 38. Qf8+ {[%emt 0:00:29]} Kg5 {[%emt 0:01:20]} 39. Qb4 {[%emt 0:00:06]} Kh6 {[%emt 0:00:53]} 40. Qf4+ {[%emt 0:00:28]} Kg7 {[%emt 0:00:22]} 41. Qc7+ {[%emt 0:30:24]} Kg8 {[%emt 0:30:53]} 42. Qd8+ {[%emt 0:01:02]} Kg7 {[%emt 0:00:08]} 43. Qc7+ {[%emt 0:00:17]} Kg8 {[%emt 0:00:10]} 44. Qd8+ {[%emt 0:00:05]} 1/2-1/2

[Event "Elitserien Allsvenskan 2018-19"]
[Site "Sweden"]
[Date "2018.11.11"]
[Round "3"]
[White "Penalver, Osmani"]
[Black "Mardell, Jimmy"]
[Result "1-0"]
[ECO "A57"]
[WhiteElo "2254"]
[BlackElo "2139"]
[Annotator "NA"]
[PlyCount "63"]
[EventDate "2018.11.09"]
[EventType "team-tourn"]
[EventCountry "SWE"]
[SourceTitle "playchess.com"]
[Source "ChessBase"]
[SourceQuality "1"]
[TimeControl "40/5400+30:1800+30"]

1. d4 {[%emt 0:00:00]} Nf6 {[%emt 0:00:00]} 2. c4 {[%emt 0:00:00]} c5 {[%emt 0:00:00]} 3. d5 {[%emt 0:03:07]} b5 {[%emt 0:00:00]} 4. f3 {[%emt 0:00:06]} b4 {[%emt 0:04:54]} 5. a3 {[%emt 0:01:30]} e6 {[%emt 0:04:39]} 6. e4 {[%emt 0:05:18]} Bd6 {[%emt 0:06:55]} 7. Be3 {[%emt 0:03:54]} Qc7 {[%emt 0:02:55]} 8. g3 {[%emt 0:00:33]} h5 {[%emt 0:02:38]} 9. Bg2 {[%emt 0:01:51]} Bb7 {[%emt 0:14:40]} 10. Ne2 {[%emt 0:05:04]} h4 {[%emt 0:06:29]} 11. f4 {[%emt 0:00:51]} Ng4 {[%emt 0:02:04]} 12. Bg1 {[%emt 0:00:47]} e5 {[%emt 0:07:50]} 13. Nc1 {[%emt 0:30:50]} Nf6 {[%emt 0:10:40]} 14. Nd3 {[%emt 0:07:16]} Na6 {[%emt 0:03:59]} 15. Be3 {[%emt 0:10:06]} O-O-O {[%emt 0:05:18]} 16. axb4 {[%emt 0:05:17]} cxb4 {[%emt 0:02:33]} 17. Nd2 {[%emt 0:04:36]} Nc5 {[%emt 0:07:13]} 18. Bxc5 {[%emt 0:02:35]} Bxc5 {[%emt 0:00:11]} 19. fxe5 {[%emt 0:00:12]} hxg3 {[%emt 0:04:59]} 20. exf6 {[%emt 0:02:07]} Rxh2 {[%emt 0:00:43]} 21. Qf3 {[%emt 0:01:29]} gxf6 {[%emt 0:02:44]} 22. Nf1 {[%emt 0:01:16]} Rxh1 {[%emt 0:00:45]} 23. Bxh1 {[%emt 0:00:07]} Rg8 {[%emt 0:01:36]} 24. Bg2 {[%emt 0:00:17]} Bd4 {[%emt 0:00:53]} 25. Nd2 {[%emt 0:01:19]} Kb8 {[%emt 0:00:57]} 26. Nxb4 {[%emt 0:00:41]} Bf2+ {[%emt 0:03:21]} 27. Ke2 {[%emt 0:00:12]} f5 {[%emt 0:01:44]} 28. Qxf5 {[%emt 0:01:31]} Qb6 {[%emt 0:00:42]} 29. Qf4+ {[%emt 0:00:17]} Ka8 {[%emt 0:00:37]} 30. Nd3 {[%emt 0:00:12]} f5 {[%emt 0:00:38]} 31. Nxf2 {[%emt 0:00:21]} gxf2 {[%emt 0:00:06]} 32. Qxf2 {[%emt 0:00:09]} 1-0